fUST/lending_fUST_20250715
["ID","MTS","AMOUNT","RATE_DAILY","PERIOD"]
[372104018,1752521454470,-460.0,0.0001726,2]
[372104019,1752521454483,-389.58274733,0.0001726,2]
[372104020,1752521454493,-2664.37,0.0001726,2]
[372104021,1752521454503,-781.64,0.0001726,2]
[372104022,1752521454512,-460.0,0.0001726,2]
[372104023,1752521454522,-460.0,0.0001726,2]
[372104024,1752521454532,-460.0,0.0001726,2]
[372104025,1752521454541,-460.0,0.0001726,2]
[372104026,1752521454552,-1254.62,0.0001726,2]
[372104027,1752521454561,-460.0,0.0001726,2]
[372104028,1752521454571,-515.09,0.0001726,2]
[372104029,1752521454581,-491.15,0.0001726,2]
[372104030,1752521454590,-601.37,0.0001726,2]
[372104031,1752521454599,-460.0,0.0001726,2]
[372104032,1752521454608,-460.0,0.0001726,2]
[372104033,1752521454619,-460.0,0.0001726,2]
[372104034,1752521454628,-460.0,0.0001726,2]
[372104035,1752521454638,-460.0,0.0001726,2]
[372104036,1752521454647,-460.0,0.0001726,2]
[372104037,1752521454657,-460.0,0.0001726,2]
[372104038,1752521454667,-460.0,0.0001726,2]
[372104039,1752521454677,-2395.32,0.0001726,2]
[372104040,1752521454686,-460.0,0.0001726,2]
[372104041,1752521454695,-1133.4,0.0001726,2]
[372104042,1752521454705,-460.0,0.0001726,2]
[372104043,1752521454716,-731.85,0.0001726,2]
[372104044,1752521454725,-512.11,0.0001726,2]
[372104045,1752521454735,-510.95,0.0001726,2]
[372104046,1752521454746,-460.0,0.0001726,2]
[372104047,1752521454756,-1574.94,0.0001726,2]
[372104048,1752521454765,-237.77885004,0.0001726,2]
[372104049,1752521454775,-460.0,0.0001726,2]
[372104050,1752521454784,-460.0,0.0001726,2]
[372104051,1752521454793,-1735.66,0.0001726,2]
[372104052,1752521454803,-746.86,0.0001726,2]
[372104053,1752521454812,-5282.76937415,0.00017279,2]
[372104054,1752521454822,-1304.57536799,0.00017294,2]
[372104055,1752521454832,-307.28145707,0.00017321,2]
[372104056,1752521454841,-1000.0,0.00017321,2]
[372104057,1752521454851,-1680.0,0.00017383,2]
[372104058,1752521454861,-420.0,0.00017383,2]
[372104059,1752521454871,-768.0,0.0001747,2]
[372104060,1752521454880,-1000.0,0.000175,2]
[372104061,1752521454890,-460.0,0.00017534,2]
[372104062,1752521454900,-178.103456,0.00017534,2]
[372104063,1752521454910,-178.103456,0.00017534,2]
[372104064,1752521454919,-460.0,0.00017534,2]
[372104065,1752521454929,-460.0,0.00017534,2]
[372104066,1752521454938,-460.0,0.00017534,2]
[372104067,1752521454948,-151.0,0.00017534,2]
[372104068,1752521454957,-151.0,0.00017534,2]
[372104069,1752521454967,-460.0,0.00017534,2]
[372104070,1752521454976,-460.0,0.00017534,2]
[372104071,1752521454986,-460.0,0.00017534,2]
[372104072,1752521454996,-500.0,0.00017534,2]
[372104073,1752521455006,-151.0,0.00017534,2]
[372104074,1752521455015,-151.0,0.00017534,2]
[372104075,1752521455025,-460.0,0.00017534,2]
[372104076,1752521455034,-460.0,0.00017534,2]
[372104077,1752521455044,-460.0,0.00017534,2]
[372104078,1752521455054,-460.0,0.00017534,2]
[372104079,1752521455064,-460.0,0.00017534,2]
[372104080,1752521455073,-460.0,0.00017534,2]
[372104081,1752521455083,-460.0,0.00017534,2]
[372104082,1752521455092,-151.0,0.00017534,2]
[372104083,1752521455103,-494.01,0.00017534,2]
[372104084,1752521455112,-460.0,0.00017534,2]
[372104085,1752521455122,-529.82,0.00017534,2]
[372104086,1752521455131,-460.0,0.00017534,2]
[372104087,1752521455141,-460.0,0.00017534,2]
[372104088,1752521455150,-560.98,0.00017534,2]
[372104089,1752521455159,-460.0,0.00017534,2]
[372104090,1752521455168,-460.0,0.00017534,2]
[372104091,1752521455178,-772.69,0.00017534,2]
[372104092,1752521455187,-460.0,0.00017534,2]
[372104093,1752521455197,-460.0,0.00017534,2]
[372104094,1752521455207,-460.0,0.00017534,2]
[372104095,1752521455217,-460.0,0.00017534,2]
[372104096,1752521455227,-556.16,0.00017534,2]
[372104097,1752521455236,-460.0,0.00017534,2]
[372104098,1752521455246,-460.0,0.00017534,2]
[372104099,1752521455255,-460.0,0.00017534,2]
[372104100,1752521455267,-684.65,0.00017534,2]
[372104101,1752521455276,-460.0,0.00017534,2]
[372104102,1752521455287,-460.0,0.00017534,2]
[372104103,1752521455299,-460.0,0.00017534,2]
[372104104,1752521455308,-460.0,0.00017534,2]
[372104105,1752521455317,-151.0,0.00017534,2]
[372104106,1752521455326,-529.207943,0.00017534,2]
[372104107,1752521455336,-460.0,0.00017534,2]
[372104108,1752521455346,-529.207943,0.00017534,2]
[372104109,1752521455355,-460.0,0.00017534,2]
[372104110,1752521455365,-460.0,0.00017534,2]
[372104111,1752521455374,-460.0,0.00017534,2]
[372104112,1752521455384,-390.351367,0.00017534,2]
[372104113,1752521455393,-390.351367,0.00017534,2]
[372104114,1752521455402,-460.0,0.00017534,2]
[372104115,1752521455413,-783.46,0.00017534,2]
[372104116,1752521455422,-460.0,0.00017534,2]
[372104117,1752521455432,-460.0,0.00017534,2]
[372104118,1752521455442,-460.0,0.00017534,2]
[372104119,1752521455451,-151.0,0.00017534,2]
[372104120,1752521455462,-460.0,0.00017534,2]
[372104121,1752521455471,-460.0,0.00017534,2]
[372104122,1752521455485,-482.07672015,0.00017534,2]
[372104123,1752521455495,-460.0,0.00017534,2]
[372104124,1752521455505,-460.0,0.00017534,2]
[372104125,1752521455515,-460.0,0.00017534,2]
[372104126,1752521455528,-838.43,0.00017534,2]
[372104127,1752521455537,-479.04,0.00017534,2]
[372104128,1752521455547,-5778.15,0.00017534,2]
[372104129,1752521455562,-750.66,0.00017534,2]
[372104130,1752521455572,-1472.9,0.00017534,2]
[372104131,1752521455581,-472.98,0.00017534,2]
[372104132,1752521455592,-460.0,0.00017534,2]
[372104133,1752521455606,-732.5,0.00017534,2]
[372104134,1752521455616,-2131.08,0.00017534,2]
[372104135,1752521455625,-460.0,0.00017534,2]
[372104136,1752521455634,-1046.19,0.00017534,2]
[372104137,1752521455644,-915.91,0.00017534,2]
[372104138,1752521455653,-460.0,0.00017534,2]
[372104139,1752521455662,-460.0,0.00017534,2]
[372104140,1752521455671,-460.0,0.00017534,2]
[372104141,1752521455680,-642.45,0.00017534,2]
[372104142,1752521455689,-460.0,0.00017534,2]
[372104143,1752521455698,-4603.44,0.00017534,2]
[372104144,1752521455707,-460.0,0.00017534,2]
[372104145,1752521455716,-3519.89,0.00017534,2]
[372104146,1752521455725,-460.0,0.00017534,2]
[372104147,1752521455734,-460.0,0.00017534,2]
[372104148,1752521455743,-1541.13,0.00017534,2]
[372104149,1752521455752,-460.0,0.00017534,2]
[372104150,1752521455761,-1774.95,0.00017534,2]
[372104151,1752521455770,-460.0,0.00017534,2]
[372104152,1752521455779,-460.0,0.00017534,2]
[372104153,1752521455787,-625.87,0.00017534,2]
[372104154,1752521455797,-460.0,0.00017534,2]
[372104155,1752521455806,-504.0,0.00017534,2]
[372104156,1752521455815,-460.0,0.00017534,2]
[372104157,1752521455824,-1010.19,0.00017534,2]
[372104158,1752521455833,-1565.01,0.00017534,2]
[372104159,1752521455842,-460.0,0.00017534,2]
[372104160,1752521455851,-607.45,0.00017534,2]
[372104161,1752521455860,-800.15,0.00017534,2]
[372104162,1752521455869,-2664.37,0.00017534,2]
[372104163,1752521455878,-781.64,0.00017534,2]
[372104164,1752521455887,-460.0,0.00017534,2]
[372104165,1752521455896,-460.0,0.00017534,2]
[372104166,1752521455905,-392.01,0.00017534,2]
[372104167,1752521455915,-1254.62,0.00017534,2]
[372104168,1752521455924,-460.0,0.00017534,2]
[372104169,1752521456032,-515.09,0.00017534,2]
[372104170,1752521456042,-491.15,0.00017534,2]
[372104171,1752521456051,-601.37,0.00017534,2]
[372104172,1752521456061,-460.0,0.00017534,2]
[372104173,1752521456070,-460.0,0.00017534,2]
[372104174,1752521456080,-460.0,0.00017534,2]
[372104175,1752521456090,-271.56123046,0.00017534,2]
[372104176,1752521456099,-460.0,0.00017534,2]
[372104177,1752521456109,-580.52143608,0.00017534,2]
[372104178,1752521456119,-2395.32,0.00017534,2]
[372104179,1752521456128,-460.0,0.00017534,2]
[372104180,1752521456138,-1133.4,0.00017534,2]
[372104181,1752521456147,-460.0,0.00017534,2]
[372104182,1752521456157,-731.85,0.00017534,2]
[372104183,1752521456166,-512.11,0.00017534,2]
[372104184,1752521456176,-510.95,0.00017534,2]
[372104185,1752521456185,-460.0,0.00017534,2]
[372104186,1752521456195,-1574.94,0.00017534,2]
[372104187,1752521456204,-460.0,0.00017534,2]
[372104188,1752521456213,-1735.66,0.00017534,2]
[372104189,1752521456222,-746.86,0.00017534,2]
[372104190,1752521456233,-160.0,0.00017544,2]
[372104191,1752521456243,-1000.0,0.00017568,2]
[372104192,1752521456254,-1500.0,0.00017568,2]
[372104193,1752521456265,-1500.0,0.00017568,2]
[372104194,1752521456275,-5282.76937415,0.00017624,2]
[372104195,1752521456284,-17.97429278,0.00017671,2]
[372104196,1752521456487,-275.02570722,0.00017671,2]
[372104197,1752521456498,-151.0,0.00017808,2]
[372104198,1752521456508,-304.95429198,0.00017808,2]
[372104199,1752521456522,-155.04570802,0.00017808,2]
[372104200,1752521456532,-379.90335639,0.00017808,2]
[372104201,1752521456543,-80.09664361,0.00017808,2]
[372104202,1752521456554,-460.0,0.00017808,2]
[372104203,1752521456564,-168.34131516,0.00017808,2]
[372104204,1752521456576,-291.65868484,0.00017808,2]
[372104205,1752521456588,-589.27158093,0.00017808,2]
[372104206,1752521456600,-349.99671374,0.00017808,2]
[372104207,1752521456615,-158.38996854,0.00017808,2]
[372104208,1752521456626,-460.0,0.00017808,2]
[372104209,1752521456638,-460.0,0.00017808,2]
[372104210,1752521456648,-170.66009796,0.00017808,2]
[372104211,1752521456662,-289.33990204,0.00017808,2]
[372104212,1752521456673,-460.0,0.00017808,2]
[372104213,1752521456683,-64.28714721,0.00017808,2]
[372104214,1752521456695,-395.71285279,0.00017808,2]
[372104215,1752521456704,-494.01,0.00017808,2]
[372104216,1752521456714,-460.0,0.00017808,2]
[372104217,1752521456725,-456.68845954,0.00017808,2]
[372104218,1752521456737,-73.13154046,0.00017808,2]
[372104219,1752521456747,-460.0,0.00017808,2]
[372104220,1752521456756,-460.0,0.00017808,2]
[372104221,1752521456766,-460.0,0.00017808,2]
[372104222,1752521456775,-460.0,0.00017808,2]
[372104223,1752521456785,-772.69,0.00017808,2]
[372104224,1752521456794,-460.0,0.00017808,2]
[372104225,1752521456803,-460.0,0.00017808,2]
[372104226,1752521456813,-460.0,0.00017808,2]
[372104227,1752521456822,-460.0,0.00017808,2]
[372104228,1752521456832,-460.0,0.00017808,2]
[372104229,1752521456842,-460.0,0.00017808,2]
[372104230,1752521456851,-684.65,0.00017808,2]
[372104231,1752521456861,-460.0,0.00017808,2]
[372104232,1752521456870,-460.0,0.00017808,2]
[372104233,1752521456879,-460.0,0.00017808,2]
[372104234,1752521456889,-460.0,0.00017808,2]
[372104235,1752521456899,-460.0,0.00017808,2]
[372104236,1752521456908,-460.0,0.00017808,2]
[372104237,1752521456918,-460.0,0.00017808,2]
[372104238,1752521456928,-460.0,0.00017808,2]
[372104239,1752521456937,-783.46,0.00017808,2]
[372104240,1752521456946,-460.0,0.00017808,2]
[372104241,1752521456955,-460.0,0.00017808,2]
[372104242,1752521456965,-460.0,0.00017808,2]
[372104243,1752521456974,-460.0,0.00017808,2]
[372104244,1752521456984,-460.0,0.00017808,2]
[372104245,1752521456994,-838.43,0.00017808,2]
[372104246,1752521457005,-479.04,0.00017808,2]
[372104247,1752521457015,-5778.15,0.00017808,2]
[372104248,1752521457025,-750.66,0.00017808,2]
[372104249,1752521457035,-1472.9,0.00017808,2]
[372104250,1752521457044,-472.98,0.00017808,2]
[372104251,1752521457053,-732.5,0.00017808,2]
[372104252,1752521457063,-2131.08,0.00017808,2]
[372104253,1752521457073,-460.0,0.00017808,2]
[372104254,1752521457083,-1046.19,0.00017808,2]
[372104255,1752521457092,-915.91,0.00017808,2]
[372104256,1752521457102,-460.0,0.00017808,2]
[372104257,1752521457111,-460.0,0.00017808,2]
[372104258,1752521457122,-291.938622,0.00017808,2]
[372104259,1752521457132,-642.45,0.00017808,2]
[372104260,1752521457141,-460.0,0.00017808,2]
[372104261,1752521457151,-4603.44,0.00017808,2]
[372104262,1752521457161,-460.0,0.00017808,2]
[372104263,1752521457170,-3519.89,0.00017808,2]
[372104264,1752521457179,-460.0,0.00017808,2]
[372104265,1752521457189,-460.0,0.00017808,2]
[372104266,1752521457199,-1541.13,0.00017808,2]
[372104267,1752521457208,-460.0,0.00017808,2]
[372104268,1752521457219,-1774.95,0.00017808,2]
[372104269,1752521457228,-460.0,0.00017808,2]
[372104270,1752521457237,-625.87,0.00017808,2]
[372104271,1752521457247,-460.0,0.00017808,2]
[372104272,1752521457257,-504.0,0.00017808,2]
[372104273,1752521457267,-460.0,0.00017808,2]
[372104274,1752521457277,-1010.19,0.00017808,2]
[372104275,1752521457287,-1565.01,0.00017808,2]
[372104276,1752521457298,-460.0,0.00017808,2]
[372104277,1752521457307,-607.45,0.00017808,2]
[372104278,1752521457316,-656.15695306,0.00017808,2]
[372104279,1752521457329,-143.99304694,0.00017808,2]
[372104280,1752521457338,-2664.37,0.00017808,2]
[372104281,1752521457348,-781.64,0.00017808,2]
[372104282,1752521457357,-304.99467262,0.00017808,2]
[372104283,1752521457370,-155.00532738,0.00017808,2]
[372104284,1752521457379,-1254.62,0.00017808,2]
[372104285,1752521457388,-107.22759462,0.00017808,2]
[372104286,1752521457576,-429.0212778,0.000165,2]
[372104287,1752521457586,-709.3,0.00017294,3]
[372104288,1752521457595,-352.77240538,0.00017808,2]
[372104289,1752521457604,-515.09,0.00017808,2]
[372104290,1752521457614,-491.15,0.00017808,2]
[372104291,1752521457624,-601.37,0.00017808,2]
[372104292,1752521457634,-460.0,0.00017808,2]
[372104293,1752521457643,-460.0,0.00017808,2]
[372104294,1752521457653,-460.0,0.00017808,2]
[372104295,1752521457663,-2395.32,0.00017808,2]
[372104296,1752521457672,-460.0,0.00017808,2]
[372104297,1752521457682,-1133.4,0.00017808,2]
[372104298,1752521457692,-460.0,0.00017808,2]
[372104299,1752521457702,-731.85,0.00017808,2]
[372104300,1752521457712,-512.11,0.00017808,2]
[372104301,1752521457722,-510.95,0.00017808,2]
[372104302,1752521457732,-460.0,0.00017808,2]
[372104303,1752521457742,-1574.94,0.00017808,2]
[372104304,1752521457751,-1707.32951311,0.00017808,2]
[372104305,1752521457767,-28.33048689,0.00017808,2]
[372104306,1752521457777,-460.0,0.00017808,2]
[372104307,1752521457787,-232.73614128,0.00017808,2]
[372104308,1752521457910,-460.0,0.00016438,2]
[372104309,1752521457920,-460.0,0.00016438,2]
[372104310,1752521457930,-460.0,0.00016712,2]
[372104311,1752521457939,-160.53771229,0.00017808,2]
[372104312,1752521621666,444.160957,0.00013699,2]
[372104314,1752521706730,156.546169,0.000198,20]
[372104317,1752521872538,325.640718,0.00027397,120]
[372104335,1752522157864,9957.10285972,0.00014831,2]
[372104336,1752522157892,14942.89714028,0.00014831,2]
[372104338,1752522306427,156.546169,0.000198,20]
[372104374,1752522632407,-292.89699069,0.000158,2]
[372104375,1752522632417,-360.87,0.00015823,3]
[372104376,1752522632426,-180.44,0.00015823,3]
[372104377,1752522632595,-541.34,0.00015823,3]
[372104378,1752522632605,-949.37227002,0.00015829,2]
[372104379,1752522632617,-250.62772998,0.00015829,2]
[372104380,1752522632627,-168.0,0.0001583,2]
[372104381,1752522632637,-300.0,0.0001583,2]
[372104382,1752522632646,-300.0,0.0001583,2]
[372104383,1752522632656,-300.0,0.0001583,2]
[372104384,1752522632665,-1200.0,0.0001583,2]
[372104385,1752522632674,-48301.04587461,0.00015831,2]
[372104386,1752522632686,-1698.95412539,0.00015831,2]
[372104387,1752522632695,-500.0,0.00015832,2]
[372104388,1752522632705,-194.97428217,0.00015832,2]
[372104389,1752522632714,-500.0,0.00015832,2]
[372104390,1752522632724,-166.48651695,0.00015832,2]
[372104391,1752522632734,-409.15401068,0.00015832,2]
[372104392,1752522632743,-577.21611157,0.00015832,2]
[372104393,1752522632752,-427.65644806,0.00015832,2]
[372104394,1752522632762,-490.95651564,0.00015832,2]
[372104395,1752522632771,-500.0,0.00015832,2]
[372104396,1752522632781,-500.0,0.00015832,2]
[372104397,1752522632790,-500.0,0.00015832,2]
[372104398,1752522632802,-69.40277778,0.00015832,2]
[372104402,1752522638530,-113.8339944,0.00015832,2]
[372104403,1752522638540,-886.1660056,0.00015833,2]
[372104404,1752522638552,-16441.67180674,0.00015833,2]
[372104405,1752522638584,-352672.16218766,0.00015833,2]
[372104407,1752522638593,-5155.12197797,0.000159,2]
[372104409,1752522638602,-2194.70942881,0.00016179,2]
[372104411,1752522638612,-5155.12197796,0.00016245,2]
[372104413,1752522638622,-2178.88771332,0.00016338,2]
[372104415,1752522638633,-460.0,0.00016438,2]
[372104417,1752522638643,-356.92758961,0.00016438,2]
[372104419,1752522638653,-460.0,0.00016438,2]
[372104420,1752522638663,-460.0,0.00016438,2]
[372104421,1752522638672,-460.0,0.00016438,2]
[372104422,1752522638682,-460.0,0.00016438,2]
[372104423,1752522638691,-460.0,0.00016438,2]
[372104424,1752522638701,-460.0,0.00016438,2]
[372104425,1752522638710,-460.0,0.00016438,2]
[372104426,1752522638720,-460.0,0.00016438,2]
[372104427,1752522638731,-461.4511122,0.00016438,2]
[372104428,1752522638740,-460.0,0.00016438,2]
[372104429,1752522638749,-540.0,0.00016438,2]
[372104430,1752522638758,-460.0,0.00016438,2]
[372104432,1752522638767,-460.0,0.00016438,2]
[372104433,1752522638778,-460.0,0.00016438,2]
[372104434,1752522638787,-460.0,0.00016438,2]
[372104435,1752522638799,-460.0,0.00016438,2]
[372104437,1752522638809,-460.0,0.00016438,2]
[372104439,1752522638819,-460.0,0.00016438,2]
[372104441,1752522638829,-460.0,0.00016438,2]
[372104443,1752522638838,-460.0,0.00016438,2]
[372104445,1752522638847,-460.0,0.00016438,2]
[372104446,1752522638857,-460.0,0.00016438,2]
[372104448,1752522638866,-460.0,0.00016438,2]
[372104449,1752522638878,-201.14919503,0.00016438,2]
[372104451,1752522638888,-460.0,0.00016438,2]
[372104453,1752522638897,-460.0,0.00016438,2]
[372104454,1752522638906,-460.0,0.00016438,2]
[372104456,1752522638915,-460.0,0.00016438,2]
[372104458,1752522638924,-460.0,0.00016438,2]
[372104460,1752522638933,-460.0,0.00016438,2]
[372104462,1752522638943,-460.0,0.00016438,2]
[372104464,1752522638952,-460.0,0.00016438,2]
[372104466,1752522638961,-460.0,0.00016438,2]
[372104468,1752522638970,-460.0,0.00016438,2]
[372104470,1752522638980,-460.0,0.00016438,2]
[372104472,1752522638989,-460.0,0.00016438,2]
[372104473,1752522638999,-517.65742134,0.00016438,2]
[372104474,1752522639008,-460.0,0.00016438,2]
[372104475,1752522639018,-460.0,0.00016438,2]
[372104477,1752522639027,-460.0,0.00016438,2]
[372104479,1752522639036,-460.0,0.00016438,2]
[372104480,1752522639046,-460.0,0.00016438,2]
[372104481,1752522639055,-460.0,0.00016438,2]
[372104482,1752522639064,-460.0,0.00016438,2]
[372104483,1752522639074,-592.66074731,0.00016438,2]
[372104484,1752522639083,-460.0,0.00016438,2]
[372104485,1752522639093,-460.0,0.00016438,2]
[372104486,1752522639102,-460.0,0.00016438,2]
[372104487,1752522639112,-460.0,0.00016438,2]
[372104488,1752522639121,-460.0,0.00016438,2]
[372104489,1752522639134,-366.27236655,0.00016438,2]
[372104490,1752522639143,-460.0,0.00016438,2]
[372104491,1752522639152,-460.0,0.00016438,2]
[372104492,1752522639161,-460.0,0.00016438,2]
[372104494,1752522639169,-460.0,0.00016438,2]
[372104495,1752522639178,-460.0,0.00016438,2]
[372104496,1752522639188,-460.0,0.00016438,2]
[372104497,1752522639197,-460.0,0.00016438,2]
[372104499,1752522639207,-460.56948249,0.00016438,2]
[372104501,1752522639217,-461.24794855,0.00016438,2]
[372104503,1752522639226,-1000.0,0.00016438,2]
[372104505,1752522639235,-460.0,0.00016438,2]
[372104507,1752522639246,-229.24292489,0.00016438,2]
[372104509,1752522639256,-461.93038741,0.00016438,2]
[372104510,1752522639266,-460.0,0.00016438,2]
[372104511,1752522639276,-460.0,0.00016438,2]
[372104512,1752522639286,-460.0,0.00016438,2]
[372104513,1752522639296,-462.18350068,0.00016438,2]
[372104514,1752522639306,-460.0,0.00016438,2]
[372104515,1752522639315,-460.0,0.00016438,2]
[372104516,1752522639325,-314.76720796,0.00016438,2]
[372104518,1752522639344,-460.0,0.00016438,2]
[372104520,1752522639355,-460.0,0.00016438,2]
[372104523,1752522639365,-460.0,0.00016438,2]
[372104525,1752522639375,-460.0,0.00016438,2]
[372104527,1752522639387,-460.0,0.00016438,2]
[372104528,1752522639396,-460.0,0.00016438,2]
[372104529,1752522639406,-460.0,0.00016438,2]
[372104530,1752522639416,-460.0,0.00016438,2]
[372104531,1752522639426,-460.0,0.00016438,2]
[372104532,1752522639436,-460.0,0.00016438,2]
[372104533,1752522639446,-460.0,0.00016438,2]
[372104534,1752522639456,-460.0,0.00016438,2]
[372104535,1752522639466,-460.0,0.00016438,2]
[372104536,1752522639475,-460.0,0.00016438,2]
[372104537,1752522639485,-460.0,0.00016438,2]
[372104538,1752522639495,-460.0,0.00016438,2]
[372104539,1752522639505,-460.0,0.00016438,2]
[372104540,1752522639515,-460.0,0.00016438,2]
[372104541,1752522639525,-460.0,0.00016438,2]
[372104542,1752522639534,-460.45605491,0.00016438,2]
[372104543,1752522639543,-460.0,0.00016438,2]
[372104544,1752522639553,-460.0,0.00016438,2]
[372104545,1752522639563,-460.0,0.00016438,2]
[372104546,1752522639573,-460.0,0.00016438,2]
[372104547,1752522639582,-460.0,0.00016438,2]
[372104548,1752522639591,-460.0,0.00016438,2]
[372104549,1752522639601,-460.0,0.00016438,2]
[372104550,1752522639610,-460.0,0.00016438,2]
[372104551,1752522639619,-460.0,0.00016438,2]
[372104552,1752522639630,-460.0,0.00016438,2]
[372104553,1752522639639,-471.56441384,0.00016438,2]
[372104554,1752522639649,-460.0,0.00016438,2]
[372104555,1752522639658,-460.0,0.00016438,2]
[372104556,1752522639667,-460.0,0.00016438,2]
[372104557,1752522639677,-460.0,0.00016438,2]
[372104558,1752522639686,-460.0,0.00016438,2]
[372104559,1752522639696,-225.57608507,0.00016438,2]
[372104560,1752522639706,-460.0,0.00016438,2]
[372104561,1752522639716,-460.0,0.00016438,2]
[372104562,1752522639725,-460.0,0.00016438,2]
[372104563,1752522639734,-460.65671789,0.00016438,2]
[372104564,1752522639743,-460.0,0.00016438,2]
[372104565,1752522639753,-460.0,0.00016438,2]
[372104566,1752522639762,-460.0,0.00016438,2]
[372104567,1752522639771,-460.0,0.00016438,2]
[372104568,1752522639780,-460.0,0.00016438,2]
[372104569,1752522639789,-460.0,0.00016438,2]
[372104570,1752522639801,-460.0,0.00016438,2]
[372104571,1752522639810,-152.93346992,0.00016438,2]
[372104572,1752522639820,-460.0,0.00016438,2]
[372104573,1752522639829,-460.0,0.00016438,2]
[372104574,1752522639838,-460.0,0.00016438,2]
[372104575,1752522639848,-460.0,0.00016438,2]
[372104576,1752522639857,-460.0,0.00016438,2]
[372104577,1752522639867,-460.0,0.00016438,2]
[372104578,1752522639878,-460.0,0.00016438,2]
[372104579,1752522639888,-460.0,0.00016438,2]
[372104580,1752522639898,-460.0,0.00016438,2]
[372104581,1752522639907,-460.0,0.00016438,2]
[372104582,1752522639918,-460.0,0.00016438,2]
[372104583,1752522639927,-460.0,0.00016438,2]
[372104585,1752522639937,-460.0,0.00016438,2]
[372104586,1752522639946,-460.0,0.00016438,2]
[372104588,1752522639955,-500.0,0.00016438,2]
[372104589,1752522639965,-500.0,0.00016438,2]
[372104590,1752522639974,-500.0,0.00016438,2]
[372104591,1752522639983,-621.39781811,0.00016438,2]
[372104592,1752522639992,-460.0,0.00016438,2]
[372104593,1752522640002,-460.0,0.00016438,2]
[372104594,1752522640011,-460.0,0.00016438,2]
[372104595,1752522640020,-460.0,0.00016438,2]
[372104596,1752522640030,-460.0,0.00016438,2]
[372104597,1752522640039,-460.0,0.00016438,2]
[372104598,1752522640048,-509.94,0.00016438,2]
[372104599,1752522640057,-460.0,0.00016438,2]
[372104600,1752522640066,-460.0,0.00016438,2]
[372104601,1752522640075,-460.0,0.00016438,2]
[372104602,1752522640085,-461.37318142,0.00016438,2]
[372104603,1752522640099,-460.0,0.00016438,2]
[372104604,1752522640109,-460.0,0.00016438,2]
[372104605,1752522640118,-450.77097785,0.00016438,2]
[372104606,1752522640129,-460.0,0.00016438,2]
[372104607,1752522640139,-460.0,0.00016438,2]
[372104608,1752522640149,-460.0,0.00016438,2]
[372104609,1752522640159,-460.0,0.00016438,2]
[372104610,1752522640168,-460.0,0.00016438,2]
[372104611,1752522640178,-460.0,0.00016438,2]
[372104612,1752522640187,-460.0,0.00016438,2]
[372104613,1752522640197,-460.0,0.00016438,2]
[372104614,1752522640206,-460.0,0.00016438,2]
[372104615,1752522640215,-236.53840333,0.00016438,2]
[372104616,1752522640225,-460.0,0.00016438,2]
[372104617,1752522640235,-460.0,0.00016438,2]
[372104618,1752522640244,-460.0,0.00016438,2]